bitfinex/quotes_ETHUSD_20250804
["timestamp","ask_amount","ask_price","bid_price","bid_amount"]
[1754329889773,6.96835749,3686.0,3685.9,0.002]
[1754329890155,3.78678951,3686.0,3685.9,0.002]
[1754329890355,3.24948951,3686.0,3685.9,0.002]
[1754329890890,3.24948951,3686.0,3685.9,2.85024159]
[1754329891070,3.24948951,3686.0,3685.9,3.46228225]
[1754329891071,0.24948951,3686.0,3685.9,3.46228225]
[1754329891270,0.24948951,3686.0,3685.9,3.59748225]
[1754329891877,0.24948951,3686.0,3685.9,7.79448225]
[1754329892191,0.24948951,3686.0,3685.9,8.33057848]
[1754329893159,0.78678951,3687.0,3686.9,2.71230573]
[1754329893405,0.24948951,3687.0,3686.9,2.71230573]
[1754329893760,0.24948951,3687.0,3686.9,2.84750573]
[1754329895304,0.24948951,3687.0,3686.9,0.1352]
[1754329895515,1.25538951,3687.0,3686.9,0.1352]
[1754329896120,3.96762167,3687.0,3686.9,0.1352]
[1754329896268,1.25538951,3687.0,3686.9,0.1352]
[1754329896705,0.24948951,3687.0,3686.9,0.1352]
[1754329896941,0.78678951,3687.0,3686.9,0.1352]
[1754329897144,1.25538951,3687.0,3686.9,0.1352]
[1754329897852,0.78678951,3687.0,3686.9,0.1352]
[1754329898037,0.24948951,3687.0,3686.9,0.1352]
[1754329898238,0.78678951,3687.0,3686.9,0.1352]
[1754329898553,0.78678951,3687.0,3686.9,2.84750573]
[1754329898554,0.24948951,3687.0,3686.9,2.84750573]
[1754329899119,0.5373,3687.3,3686.9,0.1352]
[1754329899314,4.0059,3687.2,3686.9,0.1352]
[1754329899548,1.25538951,3687.1,3686.9,0.1352]
[1754329899821,0.24948951,3687.0,3686.9,0.1352]
[1754329900124,1.25538951,3687.0,3686.9,0.1352]
[1754329900523,0.24948951,3687.0,3686.9,2.84750573]
[1754329900730,1.0059,3687.6,3687.2,2.71204054]
[1754329900731,0.24948951,3687.5,3687.2,2.71204054]
[1754329900931,0.24948951,3687.4,3687.3,4.197]
[1754329901756,0.24948951,3687.4,3687.3,4.3322]
[1754329901957,0.25065556,3687.6,3687.3,7.04421149]
[1754329902164,0.25065556,3687.6,3687.3,4.3322]
[1754329902165,0.78795556,3687.5,3687.3,4.3322]
[1754329902336,0.25065556,3687.4,3687.3,4.3322]
[1754329902934,0.25065556,3687.4,3687.3,7.04421149]
[1754329903343,0.25065556,3687.8,3687.4,2.71189053]
[1754329903547,0.25065556,3687.7,3687.5,8.407]
[1754329903750,0.25065556,3687.6,3687.5,11.1188644]
[1754329903949,0.25065556,3687.6,3687.5,8.407]
[1754329904146,0.25065556,3687.6,3687.5,4.3452]
[1754329904476,3.96834642,3687.6,3687.5,8.5422]
[1754329904674,4.93634625,3687.6,3687.5,4.21]
[1754329904971,4.93638033,3687.6,3687.5,4.21]
[1754329905470,2.71230573,3686.9,3686.8,0.1352]
[1754329905671,2.96305316,3686.9,3686.5,0.002]
[1754329905834,2.71245287,3686.7,3686.5,0.002]
[1754329906035,5.96327387,3686.6,3686.5,0.002]
[1754329906262,7.10437387,3686.6,3686.5,0.002]
[1754329906473,6.85362644,3686.6,3686.5,0.002]
[1754329906671,5.71296798,3686.0,3685.9,0.002]
[1754329906874,5.963644,3686.0,3685.9,0.002]
[1754329907078,7.85389643,3686.0,3685.9,0.002]
[1754329907376,7.85395445,3686.0,3685.9,0.002]
[1754329907578,7.60322041,3686.0,3685.9,0.002]
[1754329907871,7.85389655,3686.0,3685.9,0.002]
[1754329908386,7.85392744,3686.0,3685.9,0.002]
[1754329909352,3.25070703,3686.0,3685.9,0.002]
[1754329909890,6.42097501,3686.0,3685.9,0.002]
[1754329910055,6.98627501,3686.0,3685.9,0.002]
[1754329910488,4.27330703,3686.0,3685.9,0.002]
[1754329910688,4.1553871,3686.0,3685.9,0.002]
[1754329910990,5.14220898,3686.0,3685.9,0.002]
[1754329912396,5.10829689,3686.0,3685.9,0.002]
[1754329913191,12.33920898,3686.0,3685.9,0.002]
[1754329913391,12.30529689,3686.0,3685.9,0.002]
[1754329913907,8.10829689,3686.0,3685.9,0.002]
[1754329914087,3.25070703,3686.0,3685.9,0.002]
[1754329915295,0.25070703,3686.0,3685.9,0.002]
[1754329915592,0.25070703,3686.5,3685.9,2.71497657]
[1754329915812,0.25070703,3686.7,3686.4,2.71264977]
[1754329916017,0.25070703,3686.9,3686.5,0.1352]
[1754329916191,0.5653,3687.0,3686.5,2.84779025]
[1754329916192,0.25070703,3686.8,3686.5,2.84779025]
[1754329916393,0.25070703,3687.1,3686.6,2.71252644]
[1754329916578,0.24989119,3687.0,3686.6,2.71252644]
[1754329916774,0.1352,3687.2,3686.5,7.04479362]
[1754329916988,0.81519119,3687.3,3686.5,7.04479362]
[1754329916989,0.24989119,3687.3,3686.9,0.1352]
[1754329917214,0.24989119,3687.5,3687.1,0.1352]
[1754329917513,0.24989119,3687.6,3687.5,2.7118165]
[1754329917736,0.24989119,3688.0,3687.5,4.197]
[1754329917911,0.24989119,3688.4,3688.0,2.71148393]
[1754329918225,0.1352,3688.8,3688.1,4.197]
[1754329918733,0.38509119,3688.8,3688.3,0.1352]
[1754329919017,0.5653,3688.9,3688.0,4.197]
[1754329919018,2.71118321,3688.5,3688.0,4.197]
[1754329919219,4.67046773,3688.4,3687.9,4.197]
[1754329919380,1.0226,3688.3,3687.9,4.197]
[1754329919580,1.0226,3688.2,3687.9,4.197]
[1754329919980,0.5653,3688.1,3687.9,4.197]
[1754329920176,1.0226,3688.0,3687.7,4.3312]
[1754329920434,0.5653,3688.5,3688.0,0.1352]
[1754329920615,0.41578,3688.5,3688.0,0.1352]
[1754329920923,0.5653,3688.4,3688.0,0.1352]
[1754329921130,0.1352,3688.6,3688.0,0.1352]
[1754329921422,0.5653,3688.3,3687.9,4.196]
[1754329921622,0.4573,3688.7,3688.0,4.196]
[1754329921780,0.4573,3688.7,3688.2,0.1352]
[1754329921976,1.0226,3688.6,3688.2,0.1352]
[1754329922194,0.5653,3688.5,3688.2,0.1352]
[1754329922391,0.1352,3688.8,3688.2,0.1352]
[1754329922629,0.1352,3688.8,3688.0,4.196]
[1754329922630,0.001,3689.0,3688.0,4.196]
[1754329922780,0.001,3689.0,3688.6,0.1352]
[1754329923279,3.5653,3688.9,3688.6,0.1352]
[1754329923512,0.5653,3688.8,3688.6,0.1352]
[1754329923720,0.5653,3688.8,3688.2,4.196]
[1754329923721,1.0226,3688.8,3688.2,4.196]
[1754329923922,1.0226,3688.7,3688.2,0.1352]
[1754329924133,3.0,3688.6,3688.2,0.1352]
[1754329924421,0.5653,3688.5,3688.2,0.1352]
[1754329926222,0.95796842,3688.6,3688.2,0.1352]
[1754329926421,0.5653,3688.5,3688.2,0.1352]
[1754329926729,0.7005,3688.8,3688.2,0.1352]
[1754329926877,3.7005,3688.8,3688.2,0.1352]
[1754329927328,0.7005,3688.8,3688.2,0.1352]
[1754329927499,1.38755839,3688.8,3688.2,2.84652504]
[1754329927699,3.0,3688.7,3688.2,0.1352]
[1754329928096,4.38755839,3688.8,3688.2,0.1352]
[1754329928326,0.5653,3688.6,3688.2,0.1352]
[1754329928829,0.4573,3688.7,3688.2,0.1352]
[1754329929035,0.1352,3688.8,3688.6,2.71099401]
[1754329929328,0.5663,3689.0,3688.6,4.3302]
[1754329929507,0.5653,3688.9,3688.6,4.3302]
[1754329929906,0.5653,3688.8,3688.6,4.3302]
[1754329930107,0.5653,3688.8,3688.6,0.1352]
[1754329930340,6.73358218,3688.7,3688.4,4.195]
[1754329930640,6.73358218,3688.7,3688.2,0.1352]
[1754329930641,1.98395028,3688.6,3688.3,4.195]
[1754329930853,1.98395028,3688.6,3688.2,0.1352]
[1754329931059,2.71127619,3688.3,3688.2,0.1352]
[1754329931203,1.0226,3688.5,3688.2,0.1352]
[1754329931407,1.0226,3688.3,3688.2,0.1352]
[1754329931709,3.76776714,3688.3,3688.2,0.1352]
[1754329931924,1.0226,3688.3,3687.9,4.195]
[1754329932118,1.0226,3688.2,3687.9,0.1352]
[1754329932319,1.0226,3688.2,3687.3,2.71196046]
[1754329932320,4.05649187,3688.2,3687.3,2.71196046]
[1754329932512,3.73405773,3688.1,3687.6,0.1352]
[1754329932704,1.0226,3688.1,3687.7,4.195]
[1754329932904,3.0,3688.2,3687.7,4.195]
[1754329933150,1.0226,3688.0,3687.7,4.195]
[1754329933443,0.5653,3688.3,3687.9,2.71155573]
[1754329933603,0.5653,3688.3,3688.0,2.71148828]
[1754329934208,0.7005,3688.6,3687.9,0.1352]
[1754329934410,0.7005,3688.6,3687.9,2.84676753]
[1754329935029,0.7005,3688.6,3688.0,2.71147569]
[1754329935243,0.7005,3688.6,3687.9,0.1352]
[1754329935244,3.0,3688.5,3687.9,0.1352]
[1754329935548,0.5653,3688.4,3687.9,2.84676657]
[1754329935749,0.5653,3688.3,3687.9,2.84676657]
[1754329936044,2.71113723,3688.5,3687.9,0.1352]
[1754329936253,3.0,3688.3,3688.0,4.195]
[1754329936411,0.5653,3688.2,3688.0,4.195]
[1754329936808,0.466,3688.2,3688.0,4.195]
[1754329937015,0.5539,3688.1,3688.0,4.195]
[1754329937222,2.71125434,3688.4,3688.0,4.195]
[1754329937223,3.0,3688.4,3688.0,4.195]
[1754329937434,3.0,3688.5,3688.0,4.195]
[1754329937746,1.0199,3688.4,3688.0,4.195]
[1754329938111,0.5539,3688.3,3688.0,4.195]
[1754329938509,0.5539,3688.3,3688.0,6.90647266]
[1754329939349,0.5539,3688.3,3688.0,4.195]
[1754329939739,3.466,3688.4,3688.0,4.195]
[1754329939938,0.5539,3688.2,3688.0,4.195]
[1754329940114,0.5539,3688.1,3688.0,4.195]
[1754329940311,0.5539,3688.1,3687.9,0.1352]
[1754329940561,0.5539,3688.1,3688.0,8.405]
[1754329941440,0.5539,3688.1,3688.0,4.21]
[1754329941828,0.5539,3688.1,3688.0,8.404]
[1754329942233,0.5539,3688.1,3688.0,11.11549674]
[1754329942437,0.1352,3688.6,3688.0,8.404]
[1754329942621,0.6901,3689.0,3688.4,2.84633866]
[1754329942963,0.80379259,3689.0,3688.5,4.194]
[1754329943148,0.80379259,3689.0,3688.6,2.71105568]
[1754329943329,0.80379259,3689.0,3688.5,6.90510437]
[1754329943531,3.5539,3688.9,3688.5,4.194]
[1754329943744,1.26879259,3688.8,3688.5,4.194]
[1754329943956,1.0199,3688.8,3688.7,0.1352]
[1754329944160,0.24914472,3688.8,3688.7,0.1352]
[1754329944456,0.001,3689.0,3688.9,2.7108352]
[1754329944761,0.001,3689.0,3688.9,6.9048352]
[1754329944921,0.001,3689.0,3688.9,7.0400352]
[1754329945121,0.001,3689.0,3688.9,4.3292]
[1754329945354,0.001,3689.0,3688.9,7.0400352]
[1754329945718,0.001,3689.0,3688.9,4.3292]
[1754329945926,0.001,3689.0,3688.9,7.0400352]
[1754329946319,0.001,3689.0,3688.9,4.3292]
[1754329947133,0.001,3689.0,3688.9,7.0400352]
[1754329947462,0.25014472,3689.0,3688.9,7.0400352]
[1754329947964,0.001,3689.0,3688.9,7.0400352]
[1754329948260,0.001,3689.0,3688.9,4.3292]
[1754329948459,0.001,3689.0,3688.9,7.0400352]
[1754329948858,0.001,3689.0,3688.9,4.3292]
[1754329949230,0.001,3689.0,3688.9,7.0400352]
[1754329949424,0.001,3689.0,3688.9,11.2500352]
[1754329950178,0.001,3689.0,3688.9,8.5392]
[1754329951635,0.001,3689.0,3688.9,4.3452]
[1754329951840,3.98162043,3689.0,3688.9,4.21]
[1754329952039,4.65095034,3689.0,3688.9,8.403]
[1754329952237,4.65095034,3689.0,3688.9,4.21]
[1754329952441,7.78615034,3689.0,3688.9,4.21]
[1754329953469,7.53619163,3689.0,3688.9,4.21]
[1754329953633,5.7108352,3688.9,3688.8,4.193]
[1754329953834,8.33046638,3688.9,3688.8,4.193]
[1754329954374,0.24994157,3688.9,3688.8,6.90390869]
[1754329954537,0.001,3689.0,3688.8,7.03910869]
[1754329955156,0.001,3689.0,3688.9,2.7108352]
[1754329955339,0.001,3689.0,3688.9,4.193]
[1754329955952,0.80484157,3689.0,3688.8,0.1352]
[1754329956157,0.001,3689.0,3688.9,4.193]
[1754329956654,3.73166172,3689.0,3688.9,4.193]
[1754329956962,1.27084157,3689.0,3688.8,0.1352]
[1754329957164,5.71176172,3689.0,3688.9,4.193]
[1754329957464,2.71095691,3688.8,3688.7,4.193]
[1754329957775,5.71101254,3688.7,3688.4,0.1352]
[1754329957982,0.2499046,3688.6,3688.5,4.193]
[1754329958175,0.5549,3689.0,3688.5,4.62582]
[1754329958376,0.001,3689.0,3688.5,4.76102]
[1754329958580,0.5539,3688.9,3688.5,4.62582]
[1754329958747,0.5539,3688.9,3688.5,7.33692307]
[1754329958945,1.05378635,3688.8,3688.6,4.193]
[1754329959168,1.26985309,3688.7,3688.6,4.193]
[1754329959651,1.26990405,3688.7,3688.6,4.193]
[1754329960282,0.80390405,3688.7,3688.6,4.193]
[1754329960453,0.25000405,3688.9,3688.6,4.193]
[1754329960643,0.001,3689.0,3688.8,2.71090869]
[1754329960842,0.001,3689.0,3688.9,4.193]
[1754329961272,0.001,3689.0,3688.9,6.9038352]
[1754329961658,0.001,3689.0,3688.9,4.193]
[1754329961866,0.001,3689.0,3688.9,7.0390352]
[1754329962784,0.001,3689.0,3688.9,7.36830358]
[1754329963174,0.001,3689.0,3688.9,4.65746838]
[1754329963468,0.001,3689.0,3688.9,4.3282]
[1754329964291,0.001,3689.0,3688.9,7.0390352]
[1754329965080,0.001,3689.0,3688.9,4.3282]
[1754329965299,0.001,3689.0,3688.9,7.0390352]
[1754329966570,0.001,3689.0,3688.9,0.1352]
[1754329966764,0.5216,3689.0,3688.9,7.0380352]
[1754329967088,0.5216,3689.0,3688.9,0.1352]
[1754329967089,0.9612,3689.0,3688.9,0.1352]
[1754329967450,1.21112058,3689.0,3688.9,4.3272]
[1754329967653,0.77152058,3689.0,3688.9,4.3272]
[1754329967855,0.9612,3689.0,3688.9,4.3272]
[1754329968090,1.21112058,3689.0,3688.9,4.3272]
[1754329968994,1.21112058,3689.0,3688.9,0.1352]
[1754329969204,7.58521966,3689.0,3688.9,0.1352]
[1754329969387,4.87445794,3689.0,3688.8,4.192]
[1754329969560,4.87445794,3689.0,3688.1,4.21]
[1754329969561,3.92101254,3688.9,3688.7,4.192]
[1754329969766,0.24992058,3688.8,3688.7,4.192]
[1754329969968,3.92102927,3688.8,3688.7,4.192]
[1754329970900,3.92102927,3688.8,3688.5,0.1352]
[1754329971089,2.71090869,3688.8,3688.7,4.192]
[1754329971289,3.88649951,3688.8,3688.7,4.192]
[1754329971495,3.88653683,3688.8,3688.7,4.192]
[1754329971805,4.84673683,3688.8,3688.7,4.192]
[1754329972304,2.13582814,3688.8,3688.5,0.1352]
[1754329972527,1.21021249,3688.7,3688.1,4.21]
[1754329972719,2.71126527,3688.4,3688.2,4.3272]
[1754329973009,0.9602,3688.3,3688.2,4.3272]
[1754329973164,0.9602,3688.3,3688.2,8.5372]
[1754329974619,0.5206,3688.5,3688.2,8.5372]
[1754329974783,0.77091088,3688.5,3688.2,8.5372]
[1754329975709,0.5206,3688.5,3688.2,8.5372]
[1754329975919,0.77091088,3688.5,3688.2,8.5372]
[1754329976226,3.67140422,3688.4,3688.2,8.5372]
[1754329976425,0.5206,3688.3,3688.2,8.5372]
[1754329977497,0.9602,3688.3,3688.2,8.5372]
[1754329978301,0.5206,3688.3,3688.2,8.5372]
[1754329979325,0.25028407,3688.5,3688.2,8.5372]
[1754329979525,0.21707127,3688.7,3688.2,8.5372]
[1754329979526,2.71106987,3688.6,3688.2,8.5372]
[1754329979727,0.5206,3688.4,3688.2,8.5372]
[1754329979927,0.5206,3688.3,3688.2,8.5372]
[1754329980232,3.67147619,3688.3,3688.2,8.5362]
[1754329980428,4.03862381,3688.3,3688.2,0.1352]
[1754329980746,4.28897395,3688.3,3688.2,4.191]
[1754329981341,7.28897395,3688.3,3688.2,4.191]
[1754329982339,2.71135985,3688.2,3687.8,0.1352]
[1754329982496,0.25034881,3688.1,3687.8,0.1352]
[1754329982698,0.5206,3688.0,3687.8,0.1352]
[1754329982898,0.77094881,3688.0,3687.9,4.191]
[1754329983216,0.5206,3688.0,3687.9,4.191]
[1754329983423,0.9602,3688.0,3687.9,4.191]
[1754329983625,2.711358,3688.2,3687.9,4.191]
[1754329983820,0.5206,3688.0,3687.9,4.191]
[1754329984022,0.9602,3688.0,3687.9,4.191]
[1754329984343,2.71157027,3687.9,3687.8,0.1352]
[1754329984530,3.67177027,3687.9,3687.8,0.1352]
[1754329984975,3.67177027,3687.9,3687.8,4.3262]
[1754329985256,0.9602,3687.9,3687.8,4.3262]
[1754329985406,2.71150703,3688.0,3687.8,4.3262]
[1754329985612,0.9602,3687.9,3687.8,4.3262]
[1754329986513,0.5206,3687.9,3687.8,4.3262]
[1754329986712,0.24997228,3688.1,3687.8,4.3262]
[1754329987066,2.71091166,3688.8,3688.2,2.71132725]
[1754329987354,0.24997554,3688.7,3688.6,2.71105568]
[1754329987563,0.24997554,3688.9,3688.7,2.8461812]
[1754329987705,0.24997554,3688.9,3688.7,0.1352]
[1754329987910,0.24997554,3688.9,3688.7,2.84617793]
[1754329988140,0.24997554,3688.9,3688.8,2.71090869]
[1754329988326,0.001,3689.1,3688.9,2.7108352]
[1754329988529,0.25097554,3689.1,3688.9,4.191]
[1754329988753,0.001,3689.1,3688.9,4.3262]
[1754329988961,0.25097554,3689.1,3688.9,7.0370352]
[1754329989253,0.001,3689.1,3688.9,7.0370352]
[1754329989626,0.001,3689.1,3688.9,4.3262]
[1754329989925,0.001,3689.1,3688.9,7.0370352]
[1754329990130,0.001,3689.1,3688.9,7.74082248]
[1754329990858,0.001,3689.1,3688.9,5.02998728]
[1754329991066,0.001,3689.1,3688.9,4.3262]
[1754329991369,0.001,3689.1,3688.9,2.8460352]
[1754329991675,0.001,3689.1,3688.9,7.0360352]
[1754329991953,0.001,3689.1,3688.9,4.3252]
[1754329992363,0.001,3689.1,3688.9,7.0360352]
[1754329995269,0.001,3689.1,3688.9,7.0350352]
[1754329995868,0.001,3689.1,3688.9,4.3452]
[1754329996070,0.5216,3689.0,3688.9,8.5342]
[1754329996779,0.9884,3689.0,3688.9,4.3452]
[1754329996978,0.9884,3689.0,3688.9,8.5342]
[1754329997636,0.9884,3689.0,3688.9,4.21]
[1754329997842,0.9884,3689.0,3688.9,8.399]
[1754329998229,0.5216,3689.0,3688.9,8.399]
[1754329998666,0.001,3689.0,3688.9,8.399]
[1754329998867,0.001,3689.0,3688.9,11.1098352]
[1754329999038,0.001,3689.0,3688.9,11.2450352]
[1754329999671,0.001,3689.0,3688.2,7.15]
[1754329999672,2.71252644,3686.6,3685.5,0.13795123]
[1754329999966,5.71282079,3686.2,3685.5,0.002]
[1754330000267,37.90682231,3686.2,3685.5,0.002]
[1754330000574,37.84815564,3686.2,3685.5,0.002]
[1754330000765,41.35268514,3686.2,3685.5,0.002]
[1754330000967,36.96668514,3686.2,3686.1,1e-08]
[1754330001169,43.31720065,3686.2,3686.1,1e-08]
[1754330001872,37.60437986,3686.2,3686.1,1e-08]
[1754330002082,40.31720065,3686.2,3686.1,1e-08]
[1754330002443,40.56607218,3686.2,3686.1,1e-08]
[1754330002741,40.56617724,3686.2,3686.1,1e-08]
[1754330003444,42.00520276,3686.2,3686.1,1e-08]
[1754330003972,42.00520276,3686.2,3685.5,0.002]
[1754330003973,2.71326242,3685.6,3685.5,0.002]
[1754330004176,6.23356525,3685.6,3685.5,0.002]
[1754330004336,7.62444632,3685.6,3685.5,0.002]
[1754330004747,1.63985766,3685.6,3685.5,0.9533]
[1754330004947,4.35312008,3685.6,3685.5,0.9533]
[1754330005163,1.63985766,3685.6,3685.5,0.9533]
[1754330005373,4.35312008,3685.6,3685.5,0.9533]
[1754330005573,1.63985766,3685.6,3685.5,0.9533]
[1754330006547,1.63985766,3685.6,3685.5,4.20105727]
[1754330006878,1.63985766,3685.6,3685.5,4.75105727]
[1754330007179,1.39088107,3685.6,3685.5,4.75105727]
[1754330009141,1.39088107,3685.6,3685.5,4.7649684]
[1754330009345,1.39088107,3685.6,3685.5,7.75105727]
[1754330009839,1.39088107,3685.6,3685.5,5.99492123]
[1754330010045,1.39088107,3685.6,3685.5,5.4605]
[1754330011055,1.39088107,3685.6,3685.5,9.6705]
[1754330011259,1.39088107,3685.6,3685.5,12.38383604]
[1754330011483,1.39088107,3685.6,3685.5,11.17383604]
[1754330011783,1.39088107,3685.6,3685.5,11.72383604]
[1754330012086,0.91588107,3685.6,3685.5,11.72383604]
[1754330012959,0.91588107,3685.6,3685.5,11.71883604]
[1754330014382,0.1352,3687.3,3686.7,2.71244001]
[1754330014592,0.24749838,3687.2,3686.8,4.366]
[1754330015074,0.4668,3687.1,3686.8,4.366]
[1754330015252,0.4668,3687.0,3686.3,0.4893]
[1754330015451,0.4668,3687.0,3686.3,3.20204465]
[1754330015686,0.4668,3687.0,3686.6,0.1352]
[1754330015848,0.24749838,3687.1,3686.6,0.1352]
[1754330016052,3.5105,3687.0,3686.6,0.1352]
[1754330016246,3.5105,3687.0,3685.8,0.4893]
[1754330016247,1.40501931,3686.9,3686.4,0.1352]
[1754330016451,0.24749838,3686.8,3686.4,0.1352]
[1754330016653,0.24749838,3686.9,3686.4,0.1352]
[1754330017467,0.4668,3686.7,3686.5,4.21]
[1754330018690,0.24749838,3686.9,3686.5,4.21]
[1754330019086,0.38269838,3687.0,3686.6,0.4893]
[1754330019386,0.24749838,3686.9,3686.7,4.4882]
[1754330019694,0.24749838,3686.8,3686.7,4.9775]
[1754330020277,0.24749838,3686.8,3686.7,5.4395]
[1754330020588,2.95987767,3686.8,3686.7,4.4862]
[1754330020897,0.24749838,3686.8,3686.7,4.4862]
[1754330021677,0.71429838,3686.8,3686.5,8.558]
[1754330021866,2.95999141,3686.7,3686.5,8.6932]
[1754330022066,0.24749838,3686.6,3686.5,8.6932]
[1754330022897,2.96002482,3686.6,3686.5,8.6932]
[1754330023400,2.71260002,3686.5,3686.3,4.346]
[1754330023608,2.96017199,3686.4,3686.3,4.346]
[1754330024397,0.24749838,3686.4,3686.3,4.8353]
[1754330025610,2.96017199,3686.4,3686.3,4.346]
[1754330025815,0.24749838,3686.4,3686.3,4.346]
[1754330025981,0.24749838,3686.4,3686.2,0.1352]
[1754330026186,2.71267361,3686.4,3686.3,4.343]
[1754330026382,2.96120519,3686.4,3686.3,4.343]
[1754330027199,0.24853158,3686.4,3686.3,4.338]
[1754330027410,0.24853158,3686.4,3686.3,7.58164719]
[1754330027566,0.24853158,3686.4,3686.3,6.37066828]
[1754330028216,0.24853158,3686.4,3686.3,4.338]
[1754330028600,2.96120519,3686.4,3686.3,4.8689]
[1754330028827,0.24853158,3686.4,3686.3,4.8689]
[1754330028998,2.96124977,3686.4,3686.3,4.338]
[1754330029332,0.24853158,3686.4,3686.3,4.338]
[1754330030136,0.24853158,3686.4,3686.3,0.002]
[1754330030329,3.40850519,3686.4,3686.3,0.002]
[1754330030517,4.05792094,3686.4,3686.3,0.002]
[1754330031229,4.02401252,3686.4,3686.3,0.002]
[1754330032032,4.09411252,3686.4,3686.3,0.002]
[1754330032426,4.12802094,3686.4,3686.3,0.002]
[1754330032618,4.09411252,3686.4,3686.3,0.002]
[1754330032820,4.12802094,3686.4,3686.3,0.002]
[1754330032993,4.02401252,3686.4,3686.3,0.002]
[1754330035023,4.02529134,3686.4,3686.3,0.002]
[1754330035806,0.2498104,3686.4,3686.3,0.002]
[1754330036137,0.2498104,3686.4,3686.3,0.9917]
[1754330036501,0.2498104,3686.4,3686.3,0.5329]
[1754330037037,2.96248401,3686.4,3686.3,0.002]
[1754330037939,2.96275885,3686.4,3686.3,0.002]
[1754330038136,3.41005885,3686.4,3686.3,0.002]
[1754330038439,2.96275885,3686.4,3686.3,0.002]
[1754330038738,2.96275885,3686.4,3686.3,0.5329]
[1754330039509,2.96275885,3686.4,3686.3,0.002]
[1754330039837,3.99110867,3686.4,3686.3,0.002]
[1754330040042,4.02501709,3686.4,3686.3,0.002]
[1754330040440,7.02501709,3686.4,3686.3,0.002]
[1754330040642,7.05470867,3686.4,3686.3,0.002]
[1754330041212,6.99110867,3686.4,3686.3,0.002]
[1754330042346,6.99131962,3686.4,3686.3,0.002]
[1754330042745,6.54401962,3686.4,3686.3,0.002]
[1754330043119,5.9629698,3686.4,3686.3,0.002]
[1754330043324,0.25029619,3686.4,3686.3,0.5329]
[1754330043519,2.9629698,3686.4,3686.3,0.5329]
[1754330044012,2.9629698,3686.4,3686.3,0.002]
[1754330044555,3.44417822,3686.4,3686.3,0.002]
[1754330044724,4.50477512,3686.4,3686.3,0.002]
[1754330044922,4.0235667,3686.4,3686.3,0.002]
[1754330046751,4.05747512,3686.4,3686.3,0.002]
[1754330047053,4.0235667,3686.4,3686.3,0.002]
[1754330048156,8.7788667,3686.4,3686.3,0.002]
[1754330048648,8.33158098,3686.4,3686.3,0.002]
[1754330049420,8.33158098,3686.4,3686.3,0.5329]
[1754330050116,2.96298408,3686.4,3686.3,0.5329]
[1754330050538,0.25031047,3686.4,3686.3,0.5329]
[1754330050734,2.96298408,3686.4,3686.3,0.5329]
[1754330051149,0.25031047,3686.4,3686.3,0.5329]
[1754330051350,0.25131047,3686.4,3686.3,0.5329]
[1754330052052,0.52301047,3686.4,3686.3,0.5329]
[1754330052260,2.96398408,3686.4,3686.3,0.5329]
[1754330053734,2.96398408,3686.4,3686.3,0.002]
[1754330053934,2.9978925,3686.4,3686.3,0.002]
[1754330054135,4.27495972,3686.4,3686.3,0.002]
[1754330054361,4.41007204,3686.4,3686.3,0.002]
[1754330054673,4.85737204,3686.4,3686.3,0.002]
[1754330055868,4.41007204,3686.4,3686.3,0.002]
[1754330056059,38.36968046,3686.4,3686.3,1e-08]
[1754330056377,38.33577204,3686.4,3686.3,1e-08]
[1754330056529,39.35313748,3686.4,3686.3,1e-08]
[1754330057194,39.46185248,3686.4,3686.3,1e-08]
[1754330057661,39.39825248,3686.4,3686.3,1e-08]
[1754330057836,39.46185248,3686.4,3686.3,1e-08]
[1754330058367,39.39825248,3686.4,3686.3,1e-08]
[1754330058533,39.73355248,3686.4,3686.3,1e-08]
[1754330060054,40.17027759,3686.4,3686.3,1e-08]
[1754330060256,40.10667759,3686.4,3686.3,1e-08]
[1754330060456,40.17027759,3686.4,3686.3,1e-08]
[1754330060858,2.71318881,3685.7,3685.6,0.002]
[1754330061171,41.28957772,3685.7,3685.6,0.002]
[1754330061470,41.72136286,3685.7,3685.6,0.002]
[1754330062448,6.26326242,3685.6,3685.5,1e-08]
[1754330062654,39.20034707,3685.6,3685.5,1e-08]
[1754330062840,40.14431999,3685.6,3685.5,1e-08]
[1754330063776,9.67861999,3685.6,3685.5,1e-08]
[1754330063980,10.14431999,3685.6,3685.5,1e-08]
[1754330064476,9.67861999,3685.6,3685.5,1e-08]
[1754330064644,10.22861999,3685.6,3685.5,1e-08]
[1754330064844,10.96861999,3685.6,3685.5,0.53000001]
[1754330065040,5.52969571,3685.6,3685.5,0.98320001]
[1754330065354,1.23669571,3685.6,3685.5,0.98320001]
[1754330065767,1.2361273,3685.6,3685.5,0.98320001]
[1754330066374,1.2361273,3685.6,3685.5,3.69653605]
[1754330066575,1.2361273,3685.6,3685.5,3.83173605]
[1754330066885,1.2361273,3685.6,3685.5,4.50175402]
[1754330067087,1.2361273,3685.6,3685.5,4.48784289]
[1754330068060,1.2361273,3685.6,3685.5,5.03784289]
[1754330070498,0.98647292,3685.6,3685.5,9.32684289]
[1754330070801,0.98647292,3685.6,3685.5,4.48784289]
[1754330070969,1.23629757,3685.6,3685.5,8.77384289]
[1754330071577,1.23631094,3685.6,3685.5,8.77384289]
[1754330071773,0.98647292,3685.6,3685.5,8.77384289]
[1754330072176,0.98647292,3685.6,3685.5,8.77284289]
[1754330072374,1.23631925,3685.6,3685.5,8.77284289]
[1754330072793,0.98647292,3685.6,3685.5,8.77284289]
[1754330073702,0.98647292,3685.6,3685.5,12.98284289]
[1754330077988,0.98647292,3685.6,3685.5,8.69784289]
[1754330078190,0.98647292,3685.6,3685.5,12.97384289]
[1754330080131,0.98647292,3685.6,3685.5,8.69784289]
[1754330080277,0.98647292,3685.6,3685.5,9.14620001]